Cogmind - Beta 12 X4 @@@ ROGUE MODE // 2022.12.15 @ 18:13:57 Player: Jezoensis Result: Destroyed by G-67 Veteran with Plasma Rifle Performance ------------- Evolutions (6) 3000 Regions Visited (26) 5200 Robots Destroyed (235) 1175 Value Destroyed (10799) 10799 Prototype IDs (61) 1220 Alien Tech Used (0) 0 Bonus (6114) 6114 TOTAL SCORE: 27508 Bonus ------- High Alert Combat Kills 272 Follower Combat Kills 654 Network Hubs Disabled 400 Aligned with FarCom 300 Met Data Miner 300 Met Imprinter 300 Destroyed Z-Imprinter 1000 Triggered Deep Caves Wall 500 Exposed GOLEM Chamber 500 Met Warlord at Base 500 MAIN.C Attacked Warlord 500 Warlord Defense Kills 340 A7 Reached Mainframe 300 Met R17 at Cetus 500 Friendly Fire -252 Cogmind --------- Core Integrity 0/1150 Matter 35/300 Energy 189/1100 System Corruption 23% Temperature Cool (13) Movement Walking (100) Location -4/Hub_04(d) Parts ------- > --- POWER (2) -------- (None) > --- PROPULSION (3) --- Enhanced Biometal Leg > --- UTILITY (11) ----- Assembled Nanovents Medium Storage Unit Assembled Biocell Array Advanced Visual Processing Unit Advanced Signal Interpreter Assembled Combat Suite Advanced Transmission Jammer > --- WEAPON (3) ------- (None) > --- INVENTORY (10) --- Huge Storage Unit Structural Scanner Advanced Trap Scanner Long-range Terrain Scanner Advanced Transmission Jammer Long-range Tractor Beam HERF Cannon KE Penetrator Railgun Plasma Sword Peak State ------------ > --- POWER ------------ Assembled Flux Generator > --- PROPULSION ------- Enhanced Biometal Leg Assembled Alloy Leg Assembled Alloy Leg > --- UTILITY ---------- Assembled Nanovents Assembled Nanovents Assembled Nanovents Assembled Biocell Array Assembled Biocell Array Assembled Suspension Frame Assembled Combat Suite Assembled Alloy Armor Assembled Alloy Armor GOLEM Unit > --- WEAPON ----------- Assembled Focal Cannon Assembled Focal Cannon Assembled Focal Cannon > --- INVENTORY -------- Enhanced Biometal Leg Advanced ECM Suite System Mapper Vortex Catalyst Activator [Rating: 171] Favorites ----------- Power Assembled Flux Generator Engine Heavy Ion Engine Reactor Assembled Flux Generator Propulsion Assembled Alloy Leg Treads Improved Treads Leg Assembled Alloy Leg Wheel Armored Huge Wheel Utility Assembled Nanovents Device Assembled Nanovents Storage Assembled Biocell Array Processor Terrain Scan Processor Hackware System Mapper Protection Assembled Alloy Armor Weapon Assembled Focal Cannon Energy Gun Heavy EM Shotgun Energy Cannon Assembled Focal Cannon Ballistic Gun Shotgun Ballistic Cannon Light Antimatter Cannon Launcher Mini Grenade Launcher Special Weapon Mining Laser Impact Weapon Makeshift Hammer Slashing Weapon Ripper Build | -11 -10 -10 -10 -9 -8 -7 -7 -7 -7 -7 -6 -6 -6 -6 -6 -5 -5 -5 -5 -5 -4 -4 -4 -4 -4 -4 ------- Run | Scr Mat Min Exi Min Mat Fac Low Low Zio Dee Pro Fac Low Low Dat Pro Fac Upp Upp War Pro Fac Ext Cet Arc Hub Slots Evolved 12 | . . . . . 4 2 . . . . . 2 . . . . 2 . . . . 2 . . . . Power 1 | . . . . . . 1 . . . . . . . . . . . . . . . . . . . . Propulsion 1 | . . . . . 1 . . . . . . . . . . . . . . . . . . . . . Utility 9 | . . . . . 2 1 . . . . . 2 . . . . 2 . . . . 2 . . . . Weapon 1 | . . . . . 1 . . . . . . . . . . . . . . . . . . . . . Parts Attached 296 | 9 25 7 1 5 39 13 10 11 11 67 10 18 2 3 . 9 12 9 . 1 . 5 4 6 2 17 Power 15 | 1 1 . . . 1 3 . . . 7 . . . . . . . . . . . . . . . 2 Engine 11 | 1 1 . . . 1 3 . . . 3 . . . . . . . . . . . . . . . 2 Core . | . . . . . . . . . . . . . . . . . . . . . . . . . . . Reactor 4 | . . . . . . . . . . 4 . . . . . . . . . . . . . . . . Propulsion 41 | 3 5 2 . . 11 3 1 . 1 9 1 3 . . . . . . . 1 . . . . . 1 Treads 16 | . 1 1 . . 6 2 1 . . 5 . . . . . . . . . . . . . . . . Leg 8 | . . . . . . . . . . 3 1 2 . . . . . . . 1 . . . . . 1 Wheel 17 | 3 4 1 . . 5 1 . . 1 1 . 1 . . . . . . . . . . . . . . Hover . | . . . . . . . . . . . . . . . . . . . . . . . . . . . Flight . | . . . . . . . . . . . . . . . . . . . . . . . . . . . Utility 126 | 2 5 2 1 5 15 4 9 9 7 33 . 8 . 1 . 1 8 3 . . . 1 2 1 1 8 Device 79 | 1 2 2 . 2 6 1 6 5 6 23 . 6 . 1 . 1 7 3 . . . 1 1 1 1 3 Storage 11 | 1 2 . 1 1 2 . . . . . . 1 . . . . . . . . . . . . . 3 Processor 7 | . . . . . 2 1 . . . . . 1 . . . . 1 . . . . . . . . 2 Hackware 1 | . . . . . . . . . . . . . . . . . . . . . . . 1 . . . Protection 28 | . 1 . . 2 5 2 3 4 1 10 . . . . . . . . . . . . . . . . Artifact . | . . . . . . . . . . . . . . . . . . . . . . . . . . . Weapon 114 | 3 14 3 . . 12 3 . 2 3 18 9 7 2 2 . 8 4 6 . . . 4 2 5 1 6 Energy Gun 22 | 2 6 1 . . 5 2 . 1 1 4 . . . . . . . . . . . . . . . . Energy Cannon 4 | . . . . . . . . . . . . . . . . . . . . . . . 1 2 . 1 Ballistic Gun 13 | 1 1 1 . . 4 . . 1 1 4 . . . . . . . . . . . . . . . . Ballistic Cannon 31 | . . . . . . 1 . . . 2 2 3 1 1 . 4 3 3 . . . 4 1 1 1 4 Launcher 31 | . . . . . 2 . . . . 7 5 4 1 1 . 4 1 3 . . . . . 2 . 1 Special Weapon 9 | . 7 1 . . 1 . . . . . . . . . . . . . . . . . . . . . Impact Weapon 1 | . . . . . . . . . 1 . . . . . . . . . . . . . . . . . Slashing Weapon 3 | . . . . . . . . . . 1 2 . . . . . . . . . . . . . . . Piercing Weapon . | . . . . . . . . . . . . . . . . . . . . . . . . . . . Special Melee Weapon . | . . . . . . . . . . . . . . . . . . . . . . . . . . . Unidentified Prototypes 16 | . 1 1 . . 1 2 . . 1 6 . . . . . . . . . 1 . 1 1 1 . . Corrupted Parts 1 | . . . . . . . . . . . . . . . . . . . . . . . . . . 1 System Corruption 5 | . . . . . . . . . . . . . . . . . . . . . . . . . . 5 Parts Lost 55 | . . . . . 1 . . . . 12 1 1 . . . . 2 10 10 1 . . . 1 . 16 Power 7 | . . . . . . . . . . 3 . . . . . . . 1 . . . . . . . 3 Propulsion 9 | . . . . . 1 . . . . 3 . . . . . . . 1 1 . . . . . . 3 Utility 28 | . . . . . . . . . . 5 . 1 . . . . 2 4 7 1 . . . 1 . 7 Weapon 11 | . . . . . . . . . . 1 1 . . . . . . 4 2 . . . . . . 3 Highest Loss Streak 10 | . . . . . 1 . . . . 5 1 1 . . . . 2 10 6 1 . . . 1 . 8 To Critical Strikes 1 | . . . . . . . . . . . . . . . . . . . . . . . . 1 . . Average Slot Usage (%) 87 | . 100 100 100 100 99 93 92 91 91 85 83 84 86 86 86 85 87 77 74 84 87 88 89 85 90 90 Engine 4 | . 14 14 14 14 9 15 15 15 15 6 . . . . . . . . . . . . . . . . Reactor 3 | . . . . . . . . . . 4 7 6 6 6 6 5 5 4 5 5 4 5 5 5 5 4 Treads 2 | . . . . . 9 7 7 7 7 5 . . . . . . . . . . . . . . . . Leg 11 | . . . . . . . . . . 5 22 20 20 20 20 20 17 12 10 14 17 15 15 15 15 14 Wheel 4 | . 27 27 28 28 17 8 7 7 7 6 . . . . . . . . . . . . . . . . Device 22 | . 13 14 14 12 8 11 15 13 15 13 15 24 26 26 26 25 29 27 29 35 35 31 29 30 32 26 Storage 8 | . 14 14 14 14 9 7 7 7 7 7 15 7 6 6 6 6 5 5 5 5 5 9 10 10 10 13 Processor 3 | . . . . . 8 7 7 7 7 7 . . . . . . 4 5 1 . . . . . . 8 Protection 5 | . . . . 1 9 9 6 8 6 4 . 5 6 6 6 6 5 4 4 5 5 10 10 10 10 5 Energy Gun 2 | . 8 5 . . 8 6 7 7 6 1 . . . . . . . . . 3 . . . . . . Energy Cannon 7 | . . . . . . . . . . 2 18 13 13 13 13 12 11 11 13 12 17 13 10 8 10 6 Ballistic Gun 5 | . 14 21 28 28 18 15 15 14 15 5 . . . . . . . . . . . . . . . . Ballistic Cannon 1 | . . . . . . . . . . 3 . 2 . 2 . . 4 1 . . . 1 4 1 5 8 Launcher 1 | . . . . . . . . . . 3 2 4 5 3 6 5 . . . . . . . 1 . . Naked Turns . | . . . . . . . . . . . . . . . . . . . . . . . . . . . Heaviest Build 163 | 14 33 25 35 61 69 78 80 87 88 116 128 122 81 89 81 89 91 95 97 97 97 103 99 93 90 163 Greatest Support 110 | 26 26 26 26 26 26 28 28 28 28 84 84 84 84 84 84 84 104 104 80 110 110 110 110 110 110 110 Greatest Overweight (x) 6 | . 1 . 1 2 6 3 2 3 3 6 1 1 . 1 . 1 . 1 1 1 . . . . . 1 Average Overweight (x) 1 | . . . . 1 2 2 2 2 2 3 1 . . . . . . . . . . . . . . . Largest Inventory Capacity 25 | 8 15 10 15 20 20 20 20 20 20 20 20 20 5 5 5 5 5 5 5 5 5 5 5 5 5 25 Average Capacity 11 | 6 9 10 13 18 18 20 20 20 20 20 20 6 5 5 5 5 5 5 5 5 5 5 5 5 5 12 Most Carried 20 | 7 13 10 15 18 20 20 20 20 20 20 20 20 5 5 5 5 5 5 1 5 5 5 5 5 4 15 Average Carried 10 | 4 9 10 11 16 18 19 19 19 19 18 18 5 5 4 5 4 4 1 1 2 5 4 4 4 3 8 Final Capacity 20 | 8 10 10 15 20 20 20 20 20 20 20 20 5 5 5 5 5 5 5 5 5 5 5 5 5 5 10 Final Carried 20 | 7 10 10 15 18 20 20 20 20 19 20 20 5 5 5 5 5 5 1 1 5 5 4 4 4 4 10 Class Distribution -------------------- 55% | Golem 17% | Skirmisher 11% | Mutant 6% | Scavenger-Skirmisher 3% | Scavenger-Mutant Dominant Class ---------------- Mutant | -10/Materials Mutant | -10/Mines Mutant | -10/Exiles Skirmisher | -9/Mines Scavenger-Skirmisher | -8/Materials Skirmisher | -7/Factory Skirmisher | -7/Lower Caves Skirmisher | -7/Lower Caves Skirmisher | -7/Zion Golem | -7/Deep Caves Golem | -6/Proximity Caves Golem | -6/Factory Golem | -6/Lower Caves Golem | -6/Lower Caves Golem | -6/Data Miner Golem | -5/Proximity Caves Golem | -5/Factory Golem | -5/Upper Caves Golem | -5/Upper Caves Golem | -5/Warlord Golem | -4/Proximity Caves Golem | -4/Factory Golem | -4/Extension Golem | -4/Cetus Tank | -4/Archives Scavenger-Skirmisher | -4/Hub_04(d) Resources | -11 -10 -10 -10 -9 -8 -7 -7 -7 -7 -7 -6 -6 -6 -6 -6 -5 -5 -5 -5 -5 -4 -4 -4 -4 -4 -4 ----------- Run | Scr Mat Min Exi Min Mat Fac Low Low Zio Dee Pro Fac Low Low Dat Pro Fac Upp Upp War Pro Fac Ext Cet Arc Hub Matter Collected 5776 | 305 227 66 264 222 633 199 163 162 23 1140 237 291 115 51 . 221 230 301 . 10 . 20 294 72 118 412 Remotely . | . . . . . . . . . . . . . . . . . . . . . . . . . . . Salvage Created 10737 | 127 271 66 . 61 704 146 203 254 . 728 709 746 71 59 . 373 410 496 1129 111 227 285 1283 496 311 1471 Parts 476 | 9 17 8 . 10 58 4 5 9 . 15 35 31 2 2 . 16 24 30 47 1 8 19 56 18 6 46 Haulers Intercepted 6 | . 1 . . . 2 1 . . . . . . . . . . . . . . . 1 . . . 1 Recyclers Shooed 4 | . . . . . . . . . . . . 3 . . . . 1 . . . . . . . . . Parts Field Recycled 52 | . . . . . . . 13 11 8 20 . . . . . . . . . . . . . . . . Retrieved Matter 484 | . . . . . . . 96 112 90 186 . . . . . . . . . . . . . . . . Parts Self-Destructed 143 | . . . . . . . 8 1 . . 35 . . 3 . 20 . 23 47 . 6 . . . . . Prevented 14 | . . . . . . . 1 5 . . 6 . . 2 . . . . . . . . . . . . Kills | -11 -10 -10 -10 -9 -8 -7 -7 -7 -7 -7 -6 -6 -6 -6 -6 -5 -5 -5 -5 -5 -4 -4 -4 -4 -4 -4 ------- Run | Scr Mat Min Exi Min Mat Fac Low Low Zio Dee Pro Fac Low Low Dat Pro Fac Upp Upp War Pro Fac Ext Cet Arc Hub Combat Hostiles Destroyed 213 | . 4 3 . 2 12 1 3 5 . 39 10 4 1 2 . 10 11 24 25 2 3 2 16 12 4 18 Guns 31 | . 4 3 . 2 9 1 3 4 . 5 . . . . . . . . . . . . . . . . Cannons 109 | . . . . . . . . . . 2 8 4 1 2 . 7 5 6 25 2 3 2 16 7 4 15 AOE 70 | . . . . . 3 . . 1 . 30 2 . . . . 3 6 18 . . . . . 5 . 2 Classes Destroyed 22 | 2 5 1 . . 2 1 . . . 4 3 . 1 1 . . . . . 1 . . . . . 1 Worker 10 | . 2 . . . 4 . . . . . . . . . . . 2 . . . . . . . . 2 Builder 8 | . 1 . . . 1 . . . . . 2 3 . . . . . . . . . 1 . . . . Tunneler 7 | 3 . 1 . 2 . . . . . . . . . . . . . . . . . . . . . 1 Hauler 6 | . 1 . . . 2 1 . . . . . . . . . . . . . . . 1 . . . 1 Recycler 10 | 1 . . . . 1 1 . . . . . 4 . . . . . . . . . . . . . 3 Watcher 13 | . 1 . . . 1 . . . . . . 1 . . . . 1 . . . . 1 3 2 . 3 Swarmer 46 | . . 3 . 2 5 . . . . . . . . . . 5 4 14 13 . . . . . . . Grunt 40 | . 4 . . . 2 . 3 4 . . 2 . . . . 3 1 6 6 1 . . 3 2 . 3 Brawler 4 | . . . . . . . . . . . 2 . . . . . . . 1 . . . 1 . . . Duelist 8 | . . . . . . . . . . . 3 . . . . 1 . . 3 . . . . 1 . . Sentry 30 | . . . . . 4 . . 1 . . 1 1 . 1 . . 2 2 1 . 1 1 5 . 4 6 Specialist 2 | . . . . . . . . . . . . . . . . . . . . . . . . . . 2 Hunter 10 | . . . . . 1 . . . . . . . . . . . 2 . . . 2 . 3 2 . . Programmer 16 | . . . . . . 1 . . . . . 3 . . . . 2 2 1 . . 1 2 . . 4 Behemoth 5 | . . . . . . . . . . . 2 . . . . 1 . . . . . . 2 . . . Cetus Guard 7 | . . . . . . . . . . . . . . . . . . . . . . . . 7 . . Lightning 3 | . . . . . . . . . . . . . . . . . . . . . . . . . . 3 Executioner 1 | . . . . . . . . . . . . . . . . . . . . 1 . . . . . . Z-Light 4 | . . . . . . . . . . 4 . . . . . . . . . . . . . . . . Decomposer 1 | . . . . . . . 1 . . . . . . . . . . . . . . . . . . . Thief 1 | . . . . . . . . . . . . . . 1 . . . . . . . . . . . . Assembler 2 | . . . . . . . . . . 2 . . . . . . . . . . . . . . . . Assembled 34 | . . . . . . . . . . 34 . . . . . . . . . . . . . . . . Golem 1 | . . . . . . . . . . 1 . . . . . . . . . . . . . . . . Mutant 1 | . . . . . . . . . . . . . 1 . . . . . . . . . . . . . Best Kill Streak 30 | 4 4 2 . 2 5 1 3 4 . 30 3 3 1 2 . 7 8 13 8 2 2 2 7 5 3 8 Combat Bots Only 28 | . 2 2 . 1 4 1 3 4 . 28 3 1 1 2 . 7 6 13 8 2 2 1 7 5 3 4 Max Kills in Single Turn 12 | 1 1 2 . 1 2 1 1 1 . 12 1 1 1 1 . 2 3 2 2 1 1 1 1 3 1 3 Gunslinging . | . . . . . . . . . . . . . . . . . . . . . . . . . . . Exploded 12 | . . . . . 1 . . 1 . 12 1 . . . . 2 3 2 . . . . . 2 . 1 Melee . | . . . . . . . . . . . . . . . . . . . . . . . . . . . Uniques/NPCs Destroyed 1 | . . . . . . . . . . 1 . . . . . . . . . . . . . . . . Z-Imprinter (-7/Deep Caves) Combat | -11 -10 -10 -10 -9 -8 -7 -7 -7 -7 -7 -6 -6 -6 -6 -6 -5 -5 -5 -5 -5 -4 -4 -4 -4 -4 -4 -------- Run | Scr Mat Min Exi Min Mat Fac Low Low Zio Dee Pro Fac Low Low Dat Pro Fac Upp Upp War Pro Fac Ext Cet Arc Hub Damage Taken 16038 | . 255 40 . 43 512 76 261 326 . 2557 1891 129 50 47 . 301 612 1945 1998 84 566 131 564 124 133 3393 Core 2644 | . 58 10 . 7 60 . 79 12 . 258 316 34 . . . 37 108 233 268 . 10 24 42 8 23 1057 Absorbed by Shields 523 | . . . . . . . . . . . . . . . . . . . . . . . 51 116 . 356 Redirected to Shielding 336 | . . . . . . . . . . 336 . . . . . . . . . . . . . . . . Regen/Repaired (Parts) 54 | . . . . . . . . . 54 . . . . . . . . . . . . . . . . . Core Remaining (%) 65 | 100 . . . 70 89 . . . . . 5 . . . . 91 . . . . 38 . . . . . Volleys Fired 558 | 15 47 6 . 5 36 7 8 9 . 50 45 33 3 6 . 18 31 36 47 4 11 10 32 17 13 69 Largest 3 | 2 2 2 . 2 3 3 3 3 . 3 3 3 3 3 . 3 3 3 3 3 3 3 3 3 3 3 Hottest 213 | 70 100 100 . 46 96 96 96 96 . 121 103 107 107 107 . 107 107 107 75 75 75 103 138 173 173 213 Shots Fired 1127 | 30 74 10 . 10 94 20 20 27 . 95 85 58 7 12 . 45 50 46 70 12 25 22 96 33 34 152 Gun 301 | 30 54 8 . 10 91 17 20 27 . 44 . . . . . . . . . . . . . . . . Cannon 717 | . . . . . . 3 . . . 15 71 58 7 12 . 41 44 31 70 12 25 22 96 28 34 148 Launcher 87 | . . . . . 3 . . . . 36 14 . . . . 4 6 15 . . . . . 5 . 4 Special 22 | . 20 2 . . . . . . . . . . . . . . . . . . . . . . . . Kinetic 400 | 15 27 8 . 10 64 17 12 18 . 39 3 17 2 3 . 13 9 17 . . . 2 30 6 11 77 Thermal 529 | 15 47 2 . . 2 . . . . . 68 41 5 9 . 28 35 14 70 12 25 20 64 12 11 49 Explosive 47 | . . . . . 1 . . . . 18 3 . . . . 4 6 15 . . . . . . . . Electromagnetic 142 | . . . . . 27 3 8 9 . 38 11 . . . . . . . . . . . 2 10 12 22 Entropic 9 | . . . . . . . . . . . . . . . . . . . . . . . . 5 . 4 Robot Hit Streak 29 | 5 9 1 . 6 8 6 6 9 . 28 29 10 15 16 . 8 16 14 19 9 7 10 29 17 17 25 Robot Miss Streak 9 | 4 2 2 . 2 6 2 3 2 . 4 3 3 . 1 . 9 2 2 2 1 1 1 2 1 2 4 Penetration Max 1 | . . . . . . . . . . . . . . . . . 1 . . . . . . . . . Secondary Targets 6 | . . . . . 3 . 1 2 . . . . . . . . . . . . . . . . . . Max Gunslinging Chain 1 | . . . . . 1 . 1 1 . . . . . . . . . . . . . . . . . . Shots Hit Robots 716 | 17 41 6 . 9 71 16 17 25 . 44 58 36 5 6 . 22 20 28 51 10 18 13 69 24 29 81 Core Hits 513 | 6 14 4 . 6 32 6 13 17 . 108 20 25 2 3 . 15 20 54 31 4 6 9 39 27 11 41 Critical Kills . | . . . . . . . . . . . . . . . . . . . . . . . . . . . Critical Parts Destroyed 2 | . . . . 1 . . 1 . . . . . . . . . . . . . . . . . . . Critical Strikes 17 | . 3 . . 1 . . 1 . . 1 . 2 . . . 1 1 2 . . . . . 1 . 4 Burn 3 | . 3 . . . . . . . . . . . . . . . . . . . . . . . . . Destroy 2 | . . . . 1 . . 1 . . . . . . . . . . . . . . . . . . . Blast 12 | . . . . . . . . . . 1 . 2 . . . 1 1 2 . . . . . 1 . 4 Melee Attacks 12 | . . . . . . . . . 7 3 2 . . . . . . . . . . . . . . . Impact 7 | . . . . . . . . . 7 . . . . . . . . . . . . . . . . . Slashing 5 | . . . . . . . . . . 3 2 . . . . . . . . . . . . . . . Piercing . | . . . . . . . . . . . . . . . . . . . . . . . . . . . Sneak Attacks 2 | . . . . . . . . . . . 2 . . . . . . . . . . . . . . . Combat Hostiles . | . . . . . . . . . . . . . . . . . . . . . . . . . . . Follow-up Attacks . | . . . . . . . . . . . . . . . . . . . . . . . . . . . Damage Inflicted 35615 | 197 486 81 . 161 1315 287 341 521 . 4222 3035 1419 181 257 . 1133 1460 3065 2374 407 813 653 3267 3835 1184 4921 Guns 3495 | 197 486 81 . 161 1065 220 341 385 . 559 . . . . . . . . . . . . . . . . Cannons 19795 | . . . . . . 67 . . . 190 2450 1419 181 257 . 833 791 970 2374 407 813 649 3194 935 1180 3085 Explosions 12077 | . . . . . 250 . . 136 . 3473 414 . . . . 300 657 2089 . . . . 73 2900 . 1785 Melee 171 | . . . . . . . . . . . 171 . . . . . . . . . . . . . . . Ramming 77 | . . . . . . . . . . . . . . . . . 12 6 . . . 4 . . 4 51 Kinetic 7015 | 59 261 81 . 161 642 241 159 238 . 465 . 385 32 65 . 171 351 580 . . . 88 585 211 382 1858 Thermal 14576 | 138 225 . . . 136 . . 136 . 148 2450 1034 149 192 . 662 440 390 2374 407 813 561 2634 440 456 791 Explosive 5805 | . . . . . . . . . . 2644 115 . . . . 300 657 2089 . . . . . . . . Electromagnetic 3286 | . . . . . 537 46 182 147 . 965 299 . . . . . . . . . . . 48 284 342 436 Impact . | . . . . . . . . . . . . . . . . . . . . . . . . . . . Slashing 171 | . . . . . . . . . . . 171 . . . . . . . . . . . . . . . Piercing . | . . . . . . . . . . . . . . . . . . . . . . . . . . . Entropic 4685 | . . . . . . . . . . . . . . . . . . . . . . . . 2900 . 1785 Highest Corruption 23 | . . . . . . 1 1 1 1 3 3 3 . . . . . . 1 1 . . . . . 23 Average Corruption 3 | . . . . . . 1 1 1 1 2 3 2 . . . . . . 1 1 . . . . . 8 Corruption Purged 3 | . . . . . . . . . . . . 3 . . . . . . . . . . . . . . Corruption Blocked 8 | . . . . . . . . . . . . . . . . . 1 7 . . . . . . . . Effects 73 | . . . . . . . . 3 . 14 19 9 . . . . . . 1 1 . . . . . 26 Message Errors 24 | . . . . . . . . 2 . 6 6 2 . . . . . . . 1 . . . . . 7 Matter Fused 16 | . . . . . . . . . . . 4 4 . . . . . . . . . . . . . 8 Heat Flow Errors 4 | . . . . . . . . . . . 2 . . . . . . . . . . . . . . 2 Energy Discharges 11 | . . . . . . . . . . 5 2 1 . . . . . . 1 . . . . . . 2 Parts Rejected 1 | . . . . . . . . . . . . . . . . . . . . . . . . . . 1 Data Loss (minor) 6 | . . . . . . . . . . 2 1 1 . . . . . . . . . . . . . 2 Data Loss (major) 5 | . . . . . . . . 1 . 1 1 . . . . . . . . . . . . . . 2 Misfires 2 | . . . . . . . . . . . 2 . . . . . . . . . . . . . . . Alerts 2 | . . . . . . . . . . . 1 1 . . . . . . . . . . . . . . Misdirections 1 | . . . . . . . . . . . . . . . . . . . . . . . . . . 1 Weapon Failures 1 | . . . . . . . . . . . . . . . . . . . . . . . . . . 1 Overload Shots . | . . . . . . . . . . . . . . . . . . . . . . . . . . . Overflow Damage 992 | . . . . . . 22 . . . 93 170 232 . . . 48 11 35 41 49 7 15 46 . 14 209 Projectiles 642 | . . . . . . 22 . . . 15 59 232 . . . 13 4 23 41 49 7 15 46 . 14 102 Explosions 239 | . . . . . . . . . . 78 . . . . . 35 7 12 . . . . . . . 107 Melee 111 | . . . . . . . . . . . 111 . . . . . . . . . . . . . . . Knockbacks 33 | . . . . . . . . . . 2 . 9 . . . 1 2 2 . . . 2 3 . . 12 Impact . | . . . . . . . . . . . . . . . . . . . . . . . . . . . Kinetic 33 | . . . . . . . . . . 2 . 9 . . . 1 2 2 . . . 2 3 . . 12 Secondary . | . . . . . . . . . . . . . . . . . . . . . . . . . . . Self-Inflicted Damage 335 | . . . . . 78 . . 49 . 14 1 . . . . 51 29 78 . . . . 35 . . . Shots 13 | . . . . . 2 . . 1 . 1 1 . . . . 2 1 4 . . . . 1 . . . Rammed . | . . . . . . . . . . . . . . . . . . . . . . . . . . . Targets Rammed 14 | . . . . . . . . . . . . . . . . . 2 4 . . . 1 . . 1 6 Kicked 14 | . . . . . . . . . . . . . . . . . 2 4 . . . 1 . . 1 6 Crushed . | . . . . . . . . . . . . . . . . . . . . . . . . . . . Highest Temperature 383 | 110 223 29 . . 171 383 378 246 . 342 244 . . . . . . . . . . . . 1 . 78 Average Temperature 78 | 42 58 15 . . 47 106 161 112 . 96 119 . . . . . . . . . . . . 1 . 17 Received Heat Transfer 2745 | . 162 . . . 108 . 144 129 . 461 300 18 40 18 . 42 36 288 354 . 18 18 85 46 9 469 Effects 3 | . . . . . . 1 1 . . 1 . . . . . . . . . . . . . . . . Shutdowns 1 | . . . . . . . . . . 1 . . . . . . . . . . . . . . . . Energy Bleed 1 | . . . . . . . 1 . . . . . . . . . . . . . . . . . . . Short Circuit 1 | . . . . . . 1 . . . . . . . . . . . . . . . . . . . . Siege Activations . | . . . . . . . . . . . . . . . . . . . . . . . . . . . Robots Corrupted 3 | . . . . . . . . . . 2 . . . . . . . . . . . . . . . 1 Combat Hostiles 3 | . . . . . . . . . . 2 . . . . . . . . . . . . . . . 1 Parts Fried 20 | . . . . . 3 . . 2 . 4 1 . . . . . . . . . . . 2 4 1 3 Impact Corruptions . | . . . . . . . . . . . . . . . . . . . . . . . . . . . Robots Melted . | . . . . . . . . . . . . . . . . . . . . . . . . . . . Combat Hostiles . | . . . . . . . . . . . . . . . . . . . . . . . . . . . Parts Melted 10 | . 2 . . . 3 . . . . . 1 . . . . . . . 2 1 . . 1 . . . Heat Transferred 9531 | 407 888 . . . 274 . . 150 . 150 1300 550 100 100 . 375 250 225 1325 250 475 275 1487 275 225 450 Parts Sabotaged . | . . . . . . . . . . . . . . . . . . . . . . . . . . . Parts Stolen . | . . . . . . . . . . . . . . . . . . . . . . . . . . . Parts Stripped . | . . . . . . . . . . . . . . . . . . . . . . . . . . . Power Chain Reactions 6 | . . . . . 3 . . 1 . 2 . . . . . . . . . . . . . . . . Missiles Intercepted . | . . . . . . . . . . . . . . . . . . . . . . . . . . . Alert | -11 -10 -10 -10 -9 -8 -7 -7 -7 -7 -7 -6 -6 -6 -6 -6 -5 -5 -5 -5 -5 -4 -4 -4 -4 -4 -4 ------- Run | Scr Mat Min Exi Min Mat Fac Low Low Zio Dee Pro Fac Low Low Dat Pro Fac Upp Upp War Pro Fac Ext Cet Arc Hub Peak Influence 678 | 20 186 160 . 149 498 259 . . . . . 131 . . . . 442 . . . . 125 436 678 383 643 Initial 271 | . 13 51 . . 57 226 . . . . . 12 . . . . 110 . . . . . . 165 271 133 Average 190 | 6 87 108 . 90 289 207 . . . . . 61 . . . . 237 . . . . 43 178 505 337 264 Maximum Alert Level 2 | . . . . . 2 1 . . . . . . . . . . 2 . . . . . 2 2 1 2 Low Security (%) 53 | 100 100 100 . 100 20 22 . . . . . 100 . . . . 26 . . . . 100 46 8 . 33 Level 1 38 | . . . . . 58 77 . . . . . . . . . . 63 . . . . . 49 17 100 57 Level 2 8 | . . . . . 20 . . . . . . . . . . . 9 . . . . . 4 73 . 9 Level 3 . | . . . . . . . . . . . . . . . . . . . . . . . . . . . Level 4 . | . . . . . . . . . . . . . . . . . . . . . . . . . . . Level 5 . | . . . . . . . . . . . . . . . . . . . . . . . . . . . High Security . | . . . . . . . . . . . . . . . . . . . . . . . . . . . Max Security . | . . . . . . . . . . . . . . . . . . . . . . . . . . . Squads Dispatched 29 | . 3 . . . 3 3 . . . . . 5 . . . . 5 . 1 . . 1 1 . . 7 Investigation 8 | . 3 . . . 2 . . . . . . 1 . . . . 1 . . . . . . . . 1 Extermination 8 | . . . . . . 2 . . . . . 2 . . . . 1 . . . . 1 . . . 2 Reinforcement 11 | . . . . . 1 1 . . . . . 2 . . . . 2 . . . . . 1 . . 4 Assault 2 | . . . . . . . . . . . . . . . . . 1 . 1 . . . . . . . Garrison . | . . . . . . . . . . . . . . . . . . . . . . . . . . . Intercept . | . . . . . . . . . . . . . . . . . . . . . . . . . . . Searches Triggered . | . . . . . . . . . . . . . . . . . . . . . . . . . . . Data Miner Redirects 2 | . . . . . . . . . . . . . . . . . 1 . . . . . . . . 1 Construction Impeded 1 | . . . . . . . . . . . . . . . . . 1 . . . . . . . . . Haulers Reinforced . | . . . . . . . . . . . . . . . . . . . . . . . . . . . Active Scanning Responses . | . . . . . . . . . . . . . . . . . . . . . . . . . . . Cargo Convoy Interrupts . | . . . . . . . . . . . . . . . . . . . . . . . . . . . Stealth | -11 -10 -10 -10 -9 -8 -7 -7 -7 -7 -7 -6 -6 -6 -6 -6 -5 -5 -5 -5 -5 -4 -4 -4 -4 -4 -4 --------- Run | Scr Mat Min Exi Min Mat Fac Low Low Zio Dee Pro Fac Low Low Dat Pro Fac Upp Upp War Pro Fac Ext Cet Arc Hub Distress Signals 12 | . . . . . 2 . . . . . . 1 . . . . 1 . . 1 . . 2 2 . 3 Communications Jammed 11 | . . . . . . . . . . . . . . . . . . . . . . . . . . 11 Distress Signals 11 | . . . . . . . . . . . . . . . . . . . . . . . . . . 11 Times Spotted 347 | . 11 3 . 6 21 3 4 5 . 64 11 9 1 2 . 13 21 26 31 22 3 3 24 8 3 53 Peak Tracking Total 37 | . 3 3 . 3 5 3 4 4 . 37 4 2 1 2 . 4 6 13 11 10 2 2 7 5 1 11 Tactical Retreats 21 | . . 1 . . 2 . . . . . 1 . . . . 1 4 . 3 1 . . . . . 8 Traps | -11 -10 -10 -10 -9 -8 -7 -7 -7 -7 -7 -6 -6 -6 -6 -6 -5 -5 -5 -5 -5 -4 -4 -4 -4 -4 -4 ------- Run | Scr Mat Min Exi Min Mat Fac Low Low Zio Dee Pro Fac Low Low Dat Pro Fac Upp Upp War Pro Fac Ext Cet Arc Hub Traps Triggered 7 | . . . . . 1 1 . . . . . . . . . . 1 . . . . . 2 . . 2 Indirectly . | . . . . . . . . . . . . . . . . . . . . . . . . . . . Trap Hack Attempts . | . . . . . . . . . . . . . . . . . . . . . . . . . . . Triggered . | . . . . . . . . . . . . . . . . . . . . . . . . . . . Disarmed . | . . . . . . . . . . . . . . . . . . . . . . . . . . . Reprogrammed . | . . . . . . . . . . . . . . . . . . . . . . . . . . . Reused . | . . . . . . . . . . . . . . . . . . . . . . . . . . . Traps Extracted . | . . . . . . . . . . . . . . . . . . . . . . . . . . . Installed . | . . . . . . . . . . . . . . . . . . . . . . . . . . . Triggered 15 | . . . . . . . . . . . . . . 3 . . . . . 12 . . . . . . Most Traps Carried 1 | . . . . . . . . . . . . . . . . 1 1 . . . . . . . . . Machines | -11 -10 -10 -10 -9 -8 -7 -7 -7 -7 -7 -6 -6 -6 -6 -6 -5 -5 -5 -5 -5 -4 -4 -4 -4 -4 -4 ---------- Run | Scr Mat Min Exi Min Mat Fac Low Low Zio Dee Pro Fac Low Low Dat Pro Fac Upp Upp War Pro Fac Ext Cet Arc Hub Machines Disabled 17 | . . . . . 1 . . . . 1 2 2 1 . . . . 2 . . . 1 2 2 1 2 Max in Single Turn 2 | . . . . . 1 . . . . 1 1 1 1 . . . . 1 . . . 1 2 1 1 1 Network Hub 2 | . . . . . . . . . . . . . . . . . . . . . . . . . . 2 Energy Cycler 2 | . . . . . . . . . . . . . . . . . . . . . . . 2 . . . Machines Sabotaged . | . . . . . . . . . . . . . . . . . . . . . . . . . . . Overloaded Fab Kills . | . . . . . . . . . . . . . . . . . . . . . . . . . . . Hacking | -11 -10 -10 -10 -9 -8 -7 -7 -7 -7 -7 -6 -6 -6 -6 -6 -5 -5 -5 -5 -5 -4 -4 -4 -4 -4 -4 --------- Run | Scr Mat Min Exi Min Mat Fac Low Low Zio Dee Pro Fac Low Low Dat Pro Fac Upp Upp War Pro Fac Ext Cet Arc Hub Machines Accessed 56 | . 9 1 1 1 7 1 1 . . . . 4 . . 4 1 12 1 . 2 . . 4 1 . 6 Terminals 38 | . 7 1 . 1 5 1 . . . . . 4 . . . 1 8 1 . . . . 3 1 . 5 Fabricators 1 | . . . . . . . . . . . . . . . . . 1 . . . . . . . . . Repair Stations . | . . . . . . . . . . . . . . . . . . . . . . . . . . . Recycling Units 6 | . 2 . . . 2 . . . . . . . . . . . 1 . . . . . 1 . . . Scanalyzers . | . . . . . . . . . . . . . . . . . . . . . . . . . . . Garrison Access 3 | . . . . . . . . . . . . . . . . . 2 . . . . . . . . 1 Total Hacks 155 | . 29 8 1 2 18 2 1 . . . . 9 . . 30 1 27 2 . 2 . . 9 2 . 12 Successful 83 | . 10 4 1 . 12 2 1 . . . . 3 . . 30 1 7 2 . 2 . . 5 . . 3 Failed 72 | . 19 4 . 2 6 . . . . . . 6 . . . . 20 . . . . . 4 2 . 9 Catastrophic 9 | . . . . 1 . . . . . . . 1 . . . . 4 . . . . . . 1 . 2 Database Lockouts . | . . . . . . . . . . . . . . . . . . . . . . . . . . . Manual 102 | . 28 9 1 2 16 1 . . . . . 6 . . . . 22 . . 1 . . 7 . . 9 Terminals 107 | . 27 8 . 2 16 2 . . . . . 9 . . . 1 22 2 . . . . 7 2 . 9 Fabricators 2 | . . . . . . . . . . . . . . . . . 2 . . . . . . . . . Repair Stations . | . . . . . . . . . . . . . . . . . . . . . . . . . . . Recycling Units 7 | . 2 . . . 2 . . . . . . . . . . . 1 . . . . . 2 . . . Scanalyzers . | . . . . . . . . . . . . . . . . . . . . . . . . . . . Garrison Access 5 | . . . . . . . . . . . . . . . . . 2 . . . . . . . . 3 Terminal Hacks 59 | . 5 4 1 . 5 1 1 . . . . 2 . . 30 1 2 2 . 2 . . 2 . . 1 Record 16 | . . . . . . . 1 . . . . . . . 11 1 . 2 . 1 . . . . . . Part Schematic 13 | . . 1 . . . . . . . . . . . . 12 . . . . . . . . . . . Robot Schematic 4 | . . . . . . . . . . . . . . . 4 . . . . . . . . . . . Robot Analysis 10 | . 3 3 . . 3 . . . . . . . . . . . . . . . . . 1 . . . Prototype ID Bank 4 | . . . . . . . . . . . . 1 . . 3 . . . . . . . . . . . Open Door 1 | . . . . . . . . . . . . . . . . . . . . 1 . . . . . . Branch Access Points 2 | . . . . . . . . . . . . 1 . . . . 1 . . . . . . . . . Terminal Index 1 | . 1 . . . . . . . . . . . . . . . . . . . . . . . . . Unreport Threat 3 | . . . . . . . . . . . . . . . . . 1 . . . . . 1 . . 1 Locate Traps 4 | . 1 . . . 2 1 . . . . . . . . . . . . . . . . . . . . EX-Prototype ID Bank 1 | . . . 1 . . . . . . . . . . . . . . . . . . . . . . . Fabricator Hacks . | . . . . . . . . . . . . . . . . . . . . . . . . . . . Repair Station Hacks . | . . . . . . . . . . . . . . . . . . . . . . . . . . . Recycling Unit Hacks . | . . . . . . . . . . . . . . . . . . . . . . . . . . . Scanalyzer . | . . . . . . . . . . . . . . . . . . . . . . . . . . . Garrison Access Hacks . | . . . . . . . . . . . . . . . . . . . . . . . . . . . Unauthorized Hacks 24 | . 5 . . . 7 1 . . . . . 1 . . . . 5 . . . . . 3 . . 2 Terminals 15 | . 3 . . . 5 1 . . . . . 1 . . . . 3 . . . . . 2 . . . Track 3 | . 1 . . . 2 . . . . . . . . . . . . . . . . . . . . . Assimilate 1 | . . . . . . . . . . . . . . . . . 1 . . . . . . . . . Botnet 10 | . 2 . . . 2 1 . . . . . 1 . . . . 2 . . . . . 2 . . . Operators 1 | . . . . . 1 . . . . . . . . . . . . . . . . . . . . . Fabricators 1 | . . . . . . . . . . . . . . . . . 1 . . . . . . . . . Liberate 1 | . . . . . . . . . . . . . . . . . 1 . . . . . . . . . Repair Stations . | . . . . . . . . . . . . . . . . . . . . . . . . . . . Recycling Units 6 | . 2 . . . 2 . . . . . . . . . . . 1 . . . . . 1 . . . Recyclers 2 | . . . . . . . . . . . . . . . . . 1 . . . . . 1 . . . Tunnel 4 | . 2 . . . 2 . . . . . . . . . . . . . . . . . . . . . Scanalyzers . | . . . . . . . . . . . . . . . . . . . . . . . . . . . Garrison Access 2 | . . . . . . . . . . . . . . . . . . . . . . . . . . 2 Broadcast 1 | . . . . . . . . . . . . . . . . . . . . . . . . . . 1 Reprogram 1 | . . . . . . . . . . . . . . . . . . . . . . . . . . 1 Data Cores Recovered . | . . . . . . . . . . . . . . . . . . . . . . . . . . . Used . | . . . . . . . . . . . . . . . . . . . . . . . . . . . Hacking Detections 43 | . 7 1 . 1 5 1 . . . . . 4 . . . 1 11 1 . . . . 4 1 . 6 Full Trace Events 4 | . 1 . . . . . . . . . . 1 . . . . 1 . . . . . . . . 1 Feedback Events . | . . . . . . . . . . . . . . . . . . . . . . . . . . . Feedback Blocked . | . . . . . . . . . . . . . . . . . . . . . . . . . . . Robot Schematics Acquired 4 | . . . . . . . . . . . . . . . 4 . . . . . . . . . . . Robots Built . | . . . . . . . . . . . . . . . . . . . . . . . . . . . Authchips . | . . . . . . . . . . . . . . . . . . . . . . . . . . . Time . | . . . . . . . . . . . . . . . . . . . . . . . . . . . Total Robot Build Rating . | . . . . . . . . . . . . . . . . . . . . . . . . . . . Part Schematics Acquired 13 | . . 1 . . . . . . . . . . . . 12 . . . . . . . . . . . Parts Built . | . . . . . . . . . . . . . . . . . . . . . . . . . . . Authchips . | . . . . . . . . . . . . . . . . . . . . . . . . . . . Time . | . . . . . . . . . . . . . . . . . . . . . . . . . . . Total Part Build Rating . | . . . . . . . . . . . . . . . . . . . . . . . . . . . Parts Repaired . | . . . . . . . . . . . . . . . . . . . . . . . . . . . Time . | . . . . . . . . . . . . . . . . . . . . . . . . . . . Parts Recycled . | . . . . . . . . . . . . . . . . . . . . . . . . . . . Recycled Matter . | . . . . . . . . . . . . . . . . . . . . . . . . . . . Retrieved Matter . | . . . . . . . . . . . . . . . . . . . . . . . . . . . Retrieved Components . | . . . . . . . . . . . . . . . . . . . . . . . . . . . Parts Scanalyzed . | . . . . . . . . . . . . . . . . . . . . . . . . . . . Part Schematics Acquired . | . . . . . . . . . . . . . . . . . . . . . . . . . . . Parts Damaged . | . . . . . . . . . . . . . . . . . . . . . . . . . . . Bothacking | -11 -10 -10 -10 -9 -8 -7 -7 -7 -7 -7 -6 -6 -6 -6 -6 -5 -5 -5 -5 -5 -4 -4 -4 -4 -4 -4 ------------ Run | Scr Mat Min Exi Min Mat Fac Low Low Zio Dee Pro Fac Low Low Dat Pro Fac Upp Upp War Pro Fac Ext Cet Arc Hub Used RIF Installer . | . . . . . . . . . . . . . . . . . . . . . . . . . . . Robots Hacked . | . . . . . . . . . . . . . . . . . . . . . . . . . . . Non-combat . | . . . . . . . . . . . . . . . . . . . . . . . . . . . Combat . | . . . . . . . . . . . . . . . . . . . . . . . . . . . Robot Hacks Applied . | . . . . . . . . . . . . . . . . . . . . . . . . . . . Relay Couplers Released . | . . . . . . . . . . . . . . . . . . . . . . . . . . . Fabnet Peak Effective % . | . . . . . . . . . . . . . . . . . . . . . . . . . . . Robots Rewired . | . . . . . . . . . . . . . . . . . . . . . . . . . . . Allies Hacked . | . . . . . . . . . . . . . . . . . . . . . . . . . . . Hacks Repelled . | . . . . . . . . . . . . . . . . . . . . . . . . . . . Allies | -11 -10 -10 -10 -9 -8 -7 -7 -7 -7 -7 -6 -6 -6 -6 -6 -5 -5 -5 -5 -5 -4 -4 -4 -4 -4 -4 -------- Run | Scr Mat Min Exi Min Mat Fac Low Low Zio Dee Pro Fac Low Low Dat Pro Fac Upp Upp War Pro Fac Ext Cet Arc Hub Total Allies 14 | . . 3 . . . . . . 4 . . . . . . 1 3 . . . . . 3 . . . Largest Group 4 | . . 3 3 3 3 . . . 4 4 . . . . . 1 2 . . . . . 2 1 1 . Highest-Rated Group 177 | . . 40 40 40 40 . . . 112 112 . . . . . 96 96 . . . . . 177 143 143 . Highest-Rated Ally 159 | . . 16 16 16 16 . . . 31 31 . . . . . 96 96 . . . . . 159 143 143 . Total Orders . | . . . . . . . . . . . . . . . . . . . . . . . . . . . Ally Attacks 167 | . . . . 6 20 . . . . 66 . . . . . 22 11 . . . . . 22 20 . . Total Damage 4189 | . . . . 46 184 . . . . 2353 . . . . . 515 132 . . . . . 605 354 . . Kills 38 | . . . . 3 3 . . . . 23 . . . . . 3 2 . . . . . 2 2 . . Allies Corrupted 1 | . . . . . . . . . . . . . . . . . 1 . . . . . . . . . Allies Melted . | . . . . . . . . . . . . . . . . . . . . . . . . . . . Turrets Deployed 3 | . . . . . . . . . . 3 . . . . . . . . . . . . . . . . Intel | -11 -10 -10 -10 -9 -8 -7 -7 -7 -7 -7 -6 -6 -6 -6 -6 -5 -5 -5 -5 -5 -4 -4 -4 -4 -4 -4 ------- Run | Scr Mat Min Exi Min Mat Fac Low Low Zio Dee Pro Fac Low Low Dat Pro Fac Upp Upp War Pro Fac Ext Cet Arc Hub Robot Analysis Total 10 | . 3 3 . . 3 . . . . . . . . . . . . . . . . . 1 . . . Derelict Logs Recovered 14 | . . 1 . 2 . . . 2 2 . 1 . 1 . . 1 . 1 1 . 2 . . . . . Drone Launches . | . . . . . . . . . . . . . . . . . . . . . . . . . . . Drone Recoveries . | . . . . . . . . . . . . . . . . . . . . . . . . . . . Exploration | -11 -10 -10 -10 -9 -8 -7 -7 -7 -7 -7 -6 -6 -6 -6 -6 -5 -5 -5 -5 -5 -4 -4 -4 -4 -4 -4 ------------- Run | Scr Mat Min Exi Min Mat Fac Low Low Zio Dee Pro Fac Low Low Dat Pro Fac Upp Upp War Pro Fac Ext Cet Arc Hub Turns Passed 17686 | 94 599 191 293 301 743 517 565 451 1130 1700 908 1048 572 428 105 793 1212 817 877 907 641 423 655 245 115 1356 Spaces Moved 9764 | 47 443 175 280 240 452 355 402 295 844 886 310 540 230 256 78 314 802 252 185 591 257 268 394 136 45 687 Core 19 | 19 . . . . . . . . . . . . . . . . . . . . . . . . . . Treads 3 | . . . . . . . . . . 3 . . . . . . . . . . . . . . . . Legs 5377 | . . . . . . . . . . 32 310 540 230 256 78 314 802 252 185 591 257 268 394 136 45 687 Wheels 4365 | 28 443 175 280 240 452 355 402 295 844 851 . . . . . . . . . . . . . . . . Hover . | . . . . . . . . . . . . . . . . . . . . . . . . . . . Flight . | . . . . . . . . . . . . . . . . . . . . . . . . . . . Fastest Speed 50 | 50 80 90 90 105 105 125 130 130 130 130 189 136 136 136 136 136 136 136 150 133 133 133 133 133 133 100 Average Speed 136 | 69 87 90 100 113 121 128 130 130 130 145 189 148 136 155 136 137 136 160 179 150 133 133 133 133 133 155 Slowest Speed 232 | 90 95 90 105 120 170 130 130 145 145 232 189 195 136 189 136 189 136 189 180 180 133 133 133 133 133 180 Overloaded Moves . | . . . . . . . . . . . . . . . . . . . . . . . . . . . Propulsion Burnouts . | . . . . . . . . . . . . . . . . . . . . . . . . . . . Robots Hopped . | . . . . . . . . . . . . . . . . . . . . . . . . . . . Cave-ins Triggered . | . . . . . . . . . . . . . . . . . . . . . . . . . . . Exploration Rate (%) 53 | 4 82 51 64 61 56 9 56 50 84 80 50 20 48 54 69 67 32 58 39 73 48 9 68 73 72 74 Regions Visited 26 Branch Regions 20 Pre-discovered Areas 13 | . 2 1 . 2 2 . . . 3 . . . . . 1 . . . 1 . 1 . . . . . Known Exits Taken 3 | . . . . . . . . . . . . 1 . . . . 1 . . . . 1 . . . . Unknown Exits Taken 23 | 1 1 1 1 1 1 1 1 1 1 1 1 . 1 1 1 1 . 1 1 1 1 . 1 1 1 . Scrap Searched 25 | . . . . 3 . . 7 1 1 . . . 2 7 . 2 . . 1 . 1 . . . . . Spaces Dug 83 | . 11 1 . . 8 . . . 2 . . 5 . 3 . . 15 14 . . . 3 . 1 . 20 Terrain Destroyed 661 | . 19 2 . . 16 . . 6 2 27 13 19 2 6 . 48 51 90 17 2 6 8 44 199 1 83 Melee 2 | . . . . . . . . . 2 . . . . . . . . . . . . . . . . . Projectile 201 | . 19 2 . . . . . . . 4 10 19 2 6 . 15 24 9 17 2 6 8 12 1 1 44 AOE 458 | . . . . . 16 . . 6 . 23 3 . . . . 33 27 81 . . . . 32 198 . 39 Terrain Rammed . | . . . . . . . . . . . . . . . . . . . . . . . . . . . Walls Destroyed . | . . . . . . . . . . . . . . . . . . . . . . . . . . . Machines Disabled . | . . . . . . . . . . . . . . . . . . . . . . . . . . . Actions | -11 -10 -10 -10 -9 -8 -7 -7 -7 -7 -7 -6 -6 -6 -6 -6 -5 -5 -5 -5 -5 -4 -4 -4 -4 -4 -4 --------- Run | Scr Mat Min Exi Min Mat Fac Low Low Zio Dee Pro Fac Low Low Dat Pro Fac Upp Upp War Pro Fac Ext Cet Arc Hub Total 13110 | 78 537 191 290 255 570 406 428 341 867 1208 555 740 483 275 77 638 877 620 666 605 537 319 452 176 73 846 Wait 2152 | . 3 3 3 3 9 4 7 22 . 148 181 109 248 5 . 288 19 315 433 . 265 21 13 3 12 38 Move 9738 | 46 442 174 279 239 451 354 401 294 843 885 309 539 229 255 77 313 801 251 184 590 256 267 393 135 44 687 Hop . | . . . . . . . . . . . . . . . . . . . . . . . . . . . Pick Up 122 | 7 9 . 6 3 14 9 1 2 1 15 3 9 . 3 . 3 5 1 . 4 . 5 1 4 1 16 Fast Attach 40 | 6 1 1 . . 3 5 . 1 3 9 . 2 . . . . . . . 1 . 2 . . 1 5 Attach 57 | 2 . . . . 6 5 1 1 1 20 1 3 . . . . . 2 . . . . 1 5 1 8 Detach 70 | 1 1 . . . 1 2 . . . 18 3 9 1 . . 4 2 2 2 4 5 4 1 7 . 3 Swap 199 | 1 24 6 1 5 30 3 9 9 7 38 9 13 2 3 . 9 12 7 . . . 3 3 1 . 4 Drop 128 | . 10 1 1 . 17 13 1 3 5 22 2 23 . 3 . 3 5 2 . 2 . 6 . 4 . 5 Fire 558 | 15 47 6 . 5 36 7 8 9 . 50 45 33 3 6 . 18 31 36 47 4 11 10 32 17 13 69 Melee 12 | . . . . . . . . . 7 3 2 . . . . . . . . . . . . . . . Ram . | . . . . . . . . . . . . . . . . . . . . . . . . . . . Kick 14 | . . . . . . . . . . . . . . . . . 2 4 . . . 1 . . 1 6 Crush . | . . . . . . . . . . . . . . . . . . . . . . . . . . . Escape Stasis 17 | . . . . . . 4 . . . . . . . . . . . . . . . . 8 . . 5 Rewire 3 | . . . . . 3 . . . . . . . . . . . . . . . . . . . . . Trap . | . . . . . . . . . . . . . . . . . . . . . . . . . . . Miscellaneous . | . . . . . . . . . . . . . . . . . . . . . . . . . . . Route ------- -11/Scrapyard -10/Materials (discovered 4 exits: [*Mat x2] / *Min x2) -10/Mines (discovered 2 exits: [*Mat] / *Exi) -10/Exiles (discovered 2 exits: *Min x2) -9/Mines -8/Materials -7/Factory -7/Lower Caves -7/Lower Caves (discovered 2 exits: *Fac / [*Zio]) -7/Zion (discovered 2 exits: [*Dee] / [*Pro]) -7/Deep Caves -6/Proximity Caves -6/Factory (discovered 2 exits: *Low x2) -6/Lower Caves -6/Lower Caves -6/Data Miner -5/Proximity Caves -5/Factory (discovered 2 exits: *Upp x2) -5/Upper Caves -5/Upper Caves -5/Warlord -4/Proximity Caves -4/Factory (discovered 2 exits: Res / *Ext) -4/Extension (discovered 3 exits: *Res x2 / *Cet) -4/Cetus (discovered 2 exits: *Res / [*Arc]) -4/Archives -4/Hub_04(d) (discovered 3 exits: *Res x3) History --------- Turn | Location | Event 17 | -11/Scrapyard | Discovered new exit (range 16) 95 | -11/Scrapyard | Entered Materials 111 | -10/Materials | Discovered new exit (range 16) 216 | -10/Materials | Discovered new exit (range 9) 324 | -10/Materials | Build established: Mutant 350 | -10/Materials | Discovered new exit (range 16) 583 | -10/Materials | Discovered new exit (range 4) 694 | -10/Materials | Entered Mines 728 | -10/Mines | Learned Materials terminal intel 777 | -10/Mines | Discovered new exit (range 7) 826 | -10/Mines | Assisted by bots powering up and referring to "LRC-V3" 843 | -10/Mines | Learned location of Storage (-9) 866 | -10/Mines | Found a damaged Exp. Sensor Array with a note attached 868 | -10/Mines | Found Prototype Device 868 | -10/Mines | Identified Exp. Sensor Array 877 | -10/Mines | Deemed a non-threat by the Exiles lab entrance 877 | -10/Mines | Discovered new exit (range 5) 885 | -10/Mines | Entered Exiles 885 | -10/Exiles | Accompanied by 3 allies 897 | -10/Exiles | Discovered new exit (range 15) 908 | -10/Exiles | Met 8R-AWN 922 | -10/Exiles | Met EX-HEX 991 | -10/Exiles | Met EX-BIN 1002 | -10/Exiles | Aligned with FarCom system 1003 | -10/Exiles | Given EX-Vault access code 1027 | -10/Exiles | Opened EX-Vault 1032 | -10/Exiles | Found Deploy-a-Sentry 1034 | -10/Exiles | Found Deploy-a-Sentry 1036 | -10/Exiles | Found Deploy-a-Sentry 1057 | -10/Exiles | Warned to stay clear of 0b10 Research branches 1087 | -10/Exiles | Met EX-DEC 1165 | -10/Exiles | Discovered new exit (range 12) 1178 | -10/Exiles | Left Exiles lab with Deploy-a-Sentry 1178 | -10/Exiles | Entered Mines 1178 | -9/Mines | Accompanied by 3 allies 1208 | -9/Mines | Learned location of Zion (-7) 1213 | -9/Mines | Met a Derelict bent on vengeance 1464 | -9/Mines | Discovered new exit (range 6) 1479 | -9/Mines | Entered Materials 1479 | -8/Materials | Accompanied by 3 allies 1479 | -8/Materials | Evolved 4 slots: Propulsion x1, Utility x2, Weapon x1 1480 | -8/Materials | Loaded intel: 12 terminal locations 2186 | -8/Materials | Discovered new exit (range 15) 2209 | -8/Materials | Build established: Scavenger-Skirmisher 2222 | -8/Materials | Entered Factory 2222 | -7/Factory | Evolved 2 slots: Power x1, Utility x1 2589 | -7/Factory | Discovered new exit (range 7) 2640 | -7/Factory | Build established: Skirmisher 2739 | -7/Factory | Entered Lower Caves 3296 | -7/Lower Caves | Discovered new exit (range 4) 3304 | -7/Lower Caves | Entered another Lower Caves area 3353 | -7/Lower Caves | Discovered new exit (range 14) 3418 | -7/Lower Caves | Attracted the attention of an 0b10 checkpoint 3530 | -7/Lower Caves | Learned Factory stockpile data 3736 | -7/Lower Caves | Discovered new exit (range 16) 3755 | -7/Lower Caves | Entered Zion 3820 | -7/Zion | System corruption cleaned by Quarantine Array 3882 | -7/Zion | Discovered new exit (range 16) 3973 | -7/Zion | Learned Factory emergency access door positions 4124 | -7/Zion | Given the Hacking Drone Bay 4124 | -7/Zion | Found Prototype Device 4124 | -7/Zion | Identified Hacking Drone Bay 4210 | -7/Zion | Learned Factory emergency access door positions 4377 | -7/Zion | Gained Derelict followers 4772 | -7/Zion | Rebuked by Imprinter 4866 | -7/Zion | Discovered new exit (range 9) 4880 | -7/Zion | Saw the warning signs outside the Deep Caves entrance 4885 | -7/Zion | Entered Deep Caves 4885 | -7/Deep Caves | Accompanied by 4 allies 5029 | -7/Deep Caves | DAS Turret deployed 5042 | -7/Deep Caves | Attacked by Z-Imprinter 5052 | -7/Deep Caves | Allies destroyed Z-Imprinter 5088 | -7/Deep Caves | Found Prototype Protection 5088 | -7/Deep Caves | Identified Zio. Weapon Casing 5215 | -7/Deep Caves | Z-Facility disabled 5255 | -7/Deep Caves | Found Prototype Protection 5255 | -7/Deep Caves | Identified Zio. Heavy Carapace 5424 | -7/Deep Caves | Found Zio. Weapon Casing 5430 | -7/Deep Caves | Found Zio. Weapon Casing 5628 | -7/Deep Caves | Discovered new exit (range 14) 5840 | -7/Deep Caves | Spotted as-59852 5874 | -7/Deep Caves | Destroyed as-59852 5881 | -7/Deep Caves | Found GOLEM Unit 5904 | -7/Deep Caves | Lost 4 parts (1p1n2u) 5910 | -7/Deep Caves | DAS Turret deployed 5921 | -7/Deep Caves | DAS Turret deployed 5934 | -7/Deep Caves | Triggered Deep Caves wall 5942 | -7/Deep Caves | Spotted AS-29781 5945 | -7/Deep Caves | Spotted AS-47432 5967 | -7/Deep Caves | Destroyed AS-29781 5970 | -7/Deep Caves | Destroyed AS-47432 5990 | -7/Deep Caves | Lost 5 parts (1p2n1u1w) 5991 | -7/Deep Caves | Destroyed 28 combat bots 6037 | -7/Deep Caves | Exposed GOLEM chamber 6042 | -7/Deep Caves | Found GOLEM Unit 6047 | -7/Deep Caves | Found GOLEM Unit 6052 | -7/Deep Caves | Found GOLEM Unit 6362 | -7/Deep Caves | Build established: Golem 6585 | -7/Deep Caves | Entered Proximity Caves 6853 | -6/Proximity Caves | Spotted B-75 Beast 6875 | -6/Proximity Caves | Learned Factory garrison access intel 6876 | -6/Proximity Caves | Core integrity fell below 50% 6933 | -6/Proximity Caves | Destroyed B-75 Beast 7156 | -6/Proximity Caves | Spotted B-75 Beast 7157 | -6/Proximity Caves | Entered a huge 0b10 base via the front door 7228 | -6/Proximity Caves | Core integrity fell below 20% 7245 | -6/Proximity Caves | Destroyed B-75 Beast 7404 | -6/Proximity Caves | Derelicts attacked a huge 0b10 base 7449 | -6/Proximity Caves | Discovered new exit (range 16) 7493 | -6/Proximity Caves | Entered Factory 7493 | -6/Factory | Evolved 2 slots: Utility x2 7496 | -6/Factory | Loaded intel: 4 garrison access locations 8328 | -6/Factory | Identified exit to Lower Caves 8541 | -6/Factory | Entered Lower Caves 8935 | -6/Lower Caves | Attacked by a delusional Derelict stockpiling parts 8961 | -6/Lower Caves | Discovered new exit (range 9) 8976 | -6/Lower Caves | Learned Factory interactive machine intel 9113 | -6/Lower Caves | Entered another Lower Caves area 9115 | -6/Lower Caves | Attracted the attention of an 0b10 checkpoint 9526 | -6/Lower Caves | Discovered new exit (range 12) 9541 | -6/Lower Caves | Entered Data Miner 9541 | -6/Data Miner | Discovered new exit (range 7) 9569 | -6/Data Miner | Met Data Miner 9595 | -6/Data Miner | Learned location of Section 7 (-2) 9595 | -6/Data Miner | Acquired the access code to Warlord's prototype stash 9615 | -6/Data Miner | Received God Mode back door access code from Data Miner 9646 | -6/Data Miner | Entered Proximity Caves 9678 | -5/Proximity Caves | Escorted by Enhanced Grunt 9756 | -5/Proximity Caves | Destroyed 7 combat bots 9772 | -5/Proximity Caves | Attracted the attention of an 0b10 checkpoint 9878 | -5/Proximity Caves | Spotted B-75 Beast 9888 | -5/Proximity Caves | Destroyed B-75 Beast 10076 | -5/Proximity Caves | Learned Factory security intel 10135 | -5/Proximity Caves | Discovered new exit (range 13) 10439 | -5/Proximity Caves | Entered Factory 10439 | -5/Factory | Accompanied by 1 ally 10439 | -5/Factory | Evolved 2 slots: Utility x2 10442 | -5/Factory | Loaded intel: 51 interactive machine locations 10739 | -5/Factory | First assault squad dispatched 10765 | -5/Factory | Incoming assault squad redirected 11560 | -5/Factory | Identified exit to Upper Caves 11651 | -5/Factory | Entered Upper Caves 11660 | -5/Upper Caves | Learned location of 1 exit from Factory 11769 | -5/Upper Caves | Attracted the attention of an 0b10 checkpoint 11871 | -5/Upper Caves | Attracted the attention of an 0b10 base 11950 | -5/Upper Caves | Lost 10 parts (1p1n4u4w) 11952 | -5/Upper Caves | Destroyed 13 combat bots 12448 | -5/Upper Caves | Discovered new exit (range 12) 12468 | -5/Upper Caves | Entered another Upper Caves area 12655 | -5/Upper Caves | Attracted the attention of an 0b10 outpost 12762 | -5/Upper Caves | Lost 3 parts (3u) 12778 | -5/Upper Caves | Core integrity fell below 50% 12809 | -5/Upper Caves | Destroyed 8 combat bots 12809 | -5/Upper Caves | Lost 6 parts (1n3u2w) 13312 | -5/Upper Caves | Discovered new exit (range 10) 13345 | -5/Upper Caves | Entered Warlord 13405 | -5/Warlord | System corruption cleaned by Quarantine Array 13763 | -5/Warlord | Met Warlord 13781 | -5/Warlord | Opened Warlord's prototype stash 13788 | -5/Warlord | Warlord's base attacked by MAIN.C 13800 | -5/Warlord | Found Prototype Hackware 14085 | -5/Warlord | Found Prototype Launcher 14138 | -5/Warlord | Warlord forces counterattacked 14174 | -5/Warlord | Spotted Striker 14174 | -5/Warlord | Spotted Executioner 14211 | -5/Warlord | Spotted Executioner 14211 | -5/Warlord | Spotted Striker 14225 | -5/Warlord | Destroyed Executioner 14242 | -5/Warlord | Discovered new exit (range 9) 14252 | -5/Warlord | Entered Proximity Caves 14304 | -4/Proximity Caves | Attracted the attention of an 0b10 checkpoint 14380 | -4/Proximity Caves | Learned 4 Research zone layouts 14599 | -4/Proximity Caves | Learned location of Quarantine (-3) 14620 | -4/Proximity Caves | Spotted B-86 Titan 14625 | -4/Proximity Caves | Discovered new exit (range 9) 14893 | -4/Proximity Caves | Entered Factory 14893 | -4/Factory | Evolved 2 slots: Utility x2 14894 | -4/Factory | Identified exit to Extension 14895 | -4/Factory | Identified exit to Research 15316 | -4/Factory | Entered Extension 15357 | -4/Extension | Rescued a captive Derelict 15446 | -4/Extension | Identified System Mapper 15556 | -4/Extension | Rescued a captive Derelict 15563 | -4/Extension | Energy Cycler disabled 15565 | -4/Extension | Rescued a captive Derelict 15565 | -4/Extension | Rescued a captive Derelict 15566 | -4/Extension | Rescued a captive Derelict 15569 | -4/Extension | Rescued a captive Derelict 15597 | -4/Extension | Spotted B-86 Titan 15603 | -4/Extension | Destroyed B-86 Titan 15615 | -4/Extension | Spotted B-86 Titan 15623 | -4/Extension | Destroyed B-86 Titan 15626 | -4/Extension | Rescued A7 15630 | -4/Extension | Discovered exit to Research (range 15) 15688 | -4/Extension | Destroyed 7 combat bots 15951 | -4/Extension | Discovered exit to Research (range 16) 15951 | -4/Extension | Discovered new exit (range 16) 15971 | -4/Extension | Entered Cetus 15971 | -4/Cetus | Accompanied by 1 ally (A7) 15974 | -4/Cetus | Identified Vortex Catalyst Activator 15976 | -4/Cetus | Acquired a Cetus Manufacturing Module code from A7 15993 | -4/Cetus | Destroyed Cetus Guard 15993 | -4/Cetus | Destroyed Cetus Guard 15994 | -4/Cetus | Spotted Cetus Guard 15995 | -4/Cetus | Spotted Cetus Guard 15996 | -4/Cetus | Destroyed Cetus Guard 15998 | -4/Cetus | Destroyed Cetus Guard 16029 | -4/Cetus | Cetus Manufacturing Module disabled 16088 | -4/Cetus | Escorted A7 to Cetus Mainframe 16111 | -4/Cetus | Discovered new exit (range 15) 16140 | -4/Cetus | Destroyed Cetus Guard 16143 | -4/Cetus | Destroyed Cetus Guard 16143 | -4/Cetus | Destroyed Cetus Guard 16150 | -4/Cetus | Spotted Cetus Guard 16153 | -4/Cetus | Allies destroyed Cetus Guard 16165 | -4/Cetus | Discovered exit to Research (range 16) 16173 | -4/Cetus | Met Revision 17 16216 | -4/Cetus | Entered Archives 16216 | -4/Archives | Accompanied by 1 ally (A7) 16221 | -4/Archives | Received a hacking code to weaken MAIN.C 16311 | -4/Archives | Discovered new exit (range 15) 16331 | -4/Archives | Entered Hub_04(d) 16331 | -4/Hub_04(d) | Discovered exit to Research (range 11) 16349 | -4/Hub_04(d) | Discovered exit to Research (range 13) 16454 | -4/Hub_04(d) | Incoming investigation squad redirected 17498 | -4/Hub_04(d) | Network Hub disabled 17526 | -4/Hub_04(d) | Spotted Lightning 17526 | -4/Hub_04(d) | Spotted Lightning 17526 | -4/Hub_04(d) | Spotted Lightning 17526 | -4/Hub_04(d) | Network Hub disabled 17529 | -4/Hub_04(d) | Destroyed Lightning 17533 | -4/Hub_04(d) | Destroyed Lightning 17536 | -4/Hub_04(d) | System corruption reached 10% 17551 | -4/Hub_04(d) | Destroyed Lightning 17556 | -4/Hub_04(d) | Spotted Lightning 17585 | -4/Hub_04(d) | Lost 5 parts (1p1n3u) 17634 | -4/Hub_04(d) | Spotted Lightning 17635 | -4/Hub_04(d) | Spotted Lightning 17647 | -4/Hub_04(d) | Core integrity fell below 50% 17656 | -4/Hub_04(d) | Core integrity fell below 20% 17677 | -4/Hub_04(d) | Lost 8 parts (2p2n2u2w) 17681 | -4/Hub_04(d) | Discovered exit to Research (range 20) 17687 | -4/Hub_04(d) | Destroyed by G-67 Veteran with Plasma Rifle Last Messages --------------- 17648_ Wall collapses. 17648_ EMDS Slug penetrates Wall. 17651_ Knocked back. 17651_ Critical hit (Burn: +37). 17651_ G-67 Veteran IFF system glitched. 17651_ Penetrated by EMDS Slug. 17651_ W-44 Eye destroyed. 17652_ System corrupted: Component data lost. 17653_ Penetrated by EMDS Slug. 17657_ H-71 Marshal IFF system glitched. 17657_ Slug penetrates I-47 Archangel. 17657_ I-47 Archangel knocked back. 17658_ Penetrated by EMDS Slug. 17668_ System corrupted: Matter fused (-8). 17669_ O-24 Administrator: "IFF HANDSHAKE FAILED. SECURING TERMINAL." 17670_ Penetrated by EMDS Slug. 17672_ ALERT: Hostiles spotted, dispatching reinforcements to Terminal H004. 17681_ EXIT=FOUND: RESEARCH 17681_ W-44 Eye sends out distress signal. Map ----- +----------------------------------------------------+ | ?? ???????????????????????????? ########+####??? | | ?##/#???????????????????? # ?????# ??? | | # ??????????????????? # ?????????????????? | | " " " ???????????????????? + ?????????????????? | | " " " #????????????????????????????????????????? | | " " #????????????????????????????????????????? | | " #????????????????????????????????????????? | | " #????????????????????????????????????????? | | " #????????????????????????????????????????? | | " #????????????????????????????????????????? | | # ####+#######?????????????????????????????? | | " # g ?????????????????????????????? | | # # " " " "??????????????????????????????? | | % # # " "????????????????????????????????? | | + + " "????????????????????????????????? | | "##### " ??????????????????????????????????? | | ## ""#?#+#?#+#?#########????????????????????? | | """"" #### ### ### #???"????????????????? | | %]%= hh gg ## #??"" ???????????????? | | %=!*= gg + ] #?"""????????????????? | | ""### ########l ## #"""?????????????????? | | ""#?######??????# ## = g ???????????????????? | | "! ????????# ## #????????????????????? | | " ????????# #?? #????????????????????? | | " ??######## #####+#########+#?????????????? | | " # @ gg #????????? | | #! ; < #????????? | | # # w #????????? | | # ##/##;################+##+######????????? | | ? ! # ? ??????????????????????????????????? | | ? / ???????????????????????????????????? | | ?######### """???????????????????????????????????? | | ?????????# ????????????????????????????????????? | | ?????????###?????????????????????????????????????? | | | | | | | | | | | | | | | | | | | | | | | | | | | | | | | | | +----------------------------------------------------+ Best States ------------- Heat Dissipation 107 Energy Generation 45 Energy Capacity 2150 Matter Stores 300 Matter Capacity 300 Sight Range 20 Robot Scan Range 20 Terrain Scan Range 16 Terrain Scan Density 85 ECM Strength 2 Jamming Range 16 Additional Mass Support 20 Corruption Block 15 Armor Coverage 1200 Resistance: KI 15 Resistance: TH 15 Resistance: EX 15 Resistance: EM 15 Resistance: I 15 Resistance: S 15 Resistance: P 15 Weapon Shielding 100 Weapon Cycling 15 Phase Shifting 8 Evasion (%) 63 Targeting Accuracy 8 Core Analysis 8 Recoil Reduction 3 Offensive Hacking 20 Item Schematics ----------------- Hcp. Storage Unit | -10/Mines | Hacked Combat Drone Bay | -6/Data Miner | Free Lgt. Regenerative Plating | -6/Data Miner | Free Enh. Flexi-carbon Leg | -6/Data Miner | Free Imp. Thermal Defense Suite | -6/Data Miner | Free Plasma Sword | -6/Data Miner | Free Adv. Transmission Jammer | -6/Data Miner | Free Adv. Medium Treads | -6/Data Miner | Free HERF Cannon | -6/Data Miner | Free Imp. Thermal Shield | -6/Data Miner | Free Adv. Datajack | -6/Data Miner | Free Antigrav Array | -6/Data Miner | Free Linear Accelerator | -6/Data Miner | Free Robot Schematics ------------------ Y-64 Sentinel | -6/Data Miner | Free A-15 Conveyor | -6/Data Miner | Free Y-54 Guardian | -6/Data Miner | Free M-22 Extractor | -6/Data Miner | Free Fabricated ------------ Nothing Alien Tech Used ----------------- None Achievements -------------- None Challenges ------------ None Game ------ Seed NullHeatTriangulator Manual? 0 Play Time 03:49:18 Cumulative 813.3 hours Start 2022.12.14 @ 17:39:03 End 2022.12.15 @ 18:13:57 Sessions 11 Manual Loads 0 Difficulty Rogue Special Mode None Game No. 427 Rogue 300 Adventurer 125 Explorer 2 Win Type - Total 96 Types 79/7/5/1/1/0/0/2/1 Lore% 83 Gallery% 89 Achievement% 80 Wizard Run 0 Options --------- ASCII 0 Keyboard 1 Movement Numpad Keybinds 0 Fullscreen 1 Font 36/TerminusFine Map View 76x50 Tactical HUD 1 Map Filters NONE Filters NONE Steam 1 RUN: de8222bb-5cb3-4f46-8897-e9037b199c2f